bitfinex/quotes_ETHUSD_20250314
["timestamp","ask_amount","ask_price","bid_price","bid_amount"]
[1741929192695,5.28373,1892.6,1892.5,0.1220644]
[1741929193592,5.2835,1892.7,1892.5,0.1220644]
[1741929195392,5.28318,1892.8,1892.5,0.1220644]
[1741929195806,5.64806,1893.0,1892.5,5.4058244]
[1741929196106,10.56614,1892.9,1892.5,5.4058244]
[1741929196276,5.28331,1892.8,1892.5,0.1220644]
[1741929196873,10.56673,1892.8,1892.5,0.1220644]
[1741929197110,5.28331,1892.8,1892.5,0.1220644]
[1741929197606,5.28347,1892.7,1892.5,0.1220644]
[1741929197805,5.28331,1892.8,1892.5,0.1220644]
[1741929198001,10.56674,1892.8,1892.5,0.1220644]
[1741929198305,5.28331,1892.8,1892.5,0.1220644]
[1741929200711,5.2829,1892.9,1892.5,0.1220644]
[1741929200879,5.2829,1892.9,1892.5,5.4060444]
[1741929201280,10.56592,1892.9,1892.5,5.4060444]
[1741929201479,5.28331,1892.8,1892.5,0.1220644]
[1741929203812,5.811881,1892.7,1892.5,0.1220644]
[1741929204613,5.28373,1892.6,1892.5,0.1220644]
[1741929204919,5.28357,1892.7,1892.5,0.1220644]
[1741929206413,5.28362,1892.7,1892.5,0.1220644]
[1741929212839,5.64913,1892.6,1892.5,0.1220644]
[1741929213194,5.28406,1892.5,1892.1,5.28495]
[1741929213386,5.28432,1892.4,1892.0,6.0679]
[1741929213592,5.28457,1892.3,1892.0,3.420058]
[1741929213912,5.28457,1892.3,1892.0,0.7825]
[1741929214419,10.5694,1892.3,1892.0,0.7825]
[1741929214620,5.28457,1892.3,1892.0,0.7825]
[1741929214988,5.2843,1892.4,1892.0,6.06788]
[1741929217224,5.2846,1892.3,1892.0,0.7825]
[1741929218020,5.2843,1892.4,1892.0,6.0679]
[1741929218399,5.2843,1892.4,1892.1,0.12163232]
[1741929218601,6.41771216,1892.4,1892.1,0.12163232]
[1741929220326,5.2843,1892.4,1892.1,0.12163232]
[1741929222411,5.68442156,1892.5,1892.1,0.12163232]
[1741929222591,0.40041156,1892.5,1892.2,6.03596]
[1741929222794,5.28402,1892.5,1892.3,0.12162311]
[1741929223017,5.28379,1892.6,1892.3,0.12162311]
[1741929223214,6.377055,1892.6,1892.3,0.12162311]
[1741929223717,6.77587959,1892.6,1892.3,0.12162311]
[1741929224498,5.68261459,1892.6,1892.3,0.12162311]
[1741929225727,5.64886,1892.7,1892.3,0.12162311]
[1741929225728,10.56714,1892.7,1892.3,0.12162311]
[1741929226697,5.67159788,1892.7,1892.3,5.40617311]
[1741929227129,5.67159788,1892.7,1892.3,0.12162311]
[1741929227332,5.28382,1892.6,1892.3,0.12162311]
[1741929227840,5.67159788,1892.7,1892.3,0.12162311]
[1741929228126,10.95528788,1892.7,1892.3,5.40618311]
[1741929228326,5.28379,1892.6,1892.3,0.12162311]
[1741929229323,12.65380667,1892.7,1892.3,5.40617311]
[1741929229549,0.3654,1892.9,1892.4,0.8314]
[1741929229828,5.28314,1892.9,1892.5,0.12200509]
[1741929230220,5.28326,1892.8,1892.5,0.12200509]
[1741929230731,5.68189066,1892.9,1892.5,5.28395]
[1741929230902,5.68189066,1892.9,1892.6,0.8215]
[1741929231102,6.77834173,1892.9,1892.6,0.94350049]
[1741929231533,12.06148173,1892.9,1892.6,0.94350049]
[1741929231729,5.28328,1892.8,1892.6,0.94350049]
[1741929232906,5.64868,1892.8,1892.6,0.12200049]
[1741929233209,5.28376,1892.6,1892.4,0.8215]
[1741929233412,5.28376,1892.6,1892.5,0.12200509]
[1741929235041,0.3654,1892.8,1892.5,0.12200509]
[1741929235042,5.28324,1892.8,1892.5,0.12200509]
[1741929235930,5.28324,1892.8,1892.6,0.7776]
[1741929236311,5.28324,1892.8,1892.7,0.12199589]
[1741929236607,5.28324,1892.8,1892.6,0.7776]
[1741929236807,5.28324,1892.8,1892.7,0.12199589]
[1741929237011,5.28394,1892.6,1892.4,0.7776]
[1741929237213,0.3654,1892.6,1892.1,0.7776]
[1741929237408,5.28456,1892.4,1892.1,0.7776]
[1741929237613,5.28473,1892.3,1892.1,0.7776]
[1741929238645,5.28485,1892.2,1892.1,0.7776]
[1741929238945,5.28485,1892.2,1892.0,0.8183]
[1741929239519,5.28436,1892.4,1892.0,0.8183]
[1741929239725,5.28422,1892.5,1892.0,7.26432399]
[1741929239915,5.28434,1892.4,1892.0,6.393172]
[1741929240118,5.28434,1892.4,1892.1,0.7568]
[1741929241949,10.56888,1892.4,1892.1,0.7568]
[1741929242652,10.56888,1892.4,1892.2,1.05684639]
[1741929243041,5.28457,1892.3,1892.2,1.05684639]
[1741929243623,1.01127552,1892.3,1891.7,6.09273]
[1741929243951,5.28541,1892.0,1891.9,1.07601941]
[1741929244355,5.28541,1892.0,1891.7,0.8066]
[1741929244576,5.28531,1892.1,1891.7,0.8066]
[1741929244854,5.28492,1892.2,1891.8,0.7827]
[1741929245350,5.28492,1892.2,1891.8,6.06851]
[1741929245648,5.28441,1892.4,1891.9,0.8237]
[1741929245851,5.28441,1892.4,1892.0,5.28527]
[1741929246035,5.28444,1892.4,1892.1,0.8237]
[1741929247340,10.56885,1892.4,1892.1,0.8237]
[1741929247656,5.28441,1892.4,1892.1,0.8237]
[1741929248052,10.56896,1892.4,1892.1,0.8237]
[1741929248220,5.28459,1892.3,1892.1,0.8237]
[1741929248426,5.28459,1892.3,1892.2,0.11764053]
[1741929248759,5.28459,1892.3,1892.1,0.8237]
[1741929248930,5.28459,1892.3,1892.2,0.11764053]
[1741929249131,5.28459,1892.3,1892.1,0.8237]
[1741929249540,5.28459,1892.3,1892.2,0.11764053]
[1741929249743,5.28459,1892.3,1892.1,0.8237]
[1741929249933,5.28459,1892.3,1892.2,0.11764053]
[1741929250134,5.28459,1892.3,1892.1,0.8237]
[1741929250541,5.28459,1892.3,1892.2,0.11764053]
[1741929250735,9.3954,1892.7,1892.3,5.28439]
[1741929250939,5.28403,1892.5,1892.4,0.11801065]
[1741929251335,5.28403,1892.5,1892.4,0.11777352]
[1741929251542,5.28403,1892.5,1892.3,0.8258]
[1741929251741,5.28403,1892.5,1892.4,0.11777352]
[1741929251944,5.28403,1892.5,1892.3,0.8258]
[1741929252262,5.28403,1892.5,1892.4,0.11777352]
[1741929252452,10.56796,1892.6,1892.4,0.11777352]
[1741929252654,10.56782,1892.6,1892.3,0.8258]
[1741929252834,10.56782,1892.6,1892.5,0.11776892]
[1741929253037,10.56782,1892.6,1892.4,0.11777352]
[1741929253038,5.96601067,1892.6,1892.4,0.11777352]
[1741929253368,5.96601067,1892.6,1892.5,0.11776892]
[1741929253544,5.96601067,1892.6,1892.3,0.8258]
[1741929253730,5.28384,1892.6,1892.4,0.11777352]
[1741929253934,5.28384,1892.6,1892.3,0.8258]
[1741929254130,5.28384,1892.6,1892.4,0.1177261]
[1741929254357,5.28384,1892.6,1892.3,0.8258]
[1741929254552,8.28354,1892.7,1892.4,0.11770239]
[1741929254759,8.28354,1892.7,1892.3,6.1102]
[1741929254934,13.56727,1892.7,1892.4,0.11770239]
[1741929255135,5.28375,1892.6,1892.3,0.8258]
[1741929255329,5.28375,1892.6,1892.4,0.11770239]
[1741929255762,5.28375,1892.6,1892.3,0.8258]
[1741929255963,5.28375,1892.6,1892.4,0.11770239]
[1741929256467,5.28375,1892.6,1892.5,0.11769779]
[1741929256760,8.28354,1892.7,1892.3,0.8258]
[1741929257072,8.28354,1892.7,1892.4,0.11770239]
[1741929257262,9.640212,1892.7,1892.4,0.11770239]
[1741929257466,9.640212,1892.7,1892.3,6.11034]
[1741929257640,9.640212,1892.7,1892.5,0.11769779]
[1741929257841,9.640212,1892.7,1892.4,0.11770239]
[1741929258041,9.640212,1892.7,1892.6,0.11769319]
[1741929258239,9.640212,1892.7,1892.5,0.11769779]
[1741929258466,9.640212,1892.7,1892.6,0.11769319]
[1741929258855,9.640212,1892.7,1892.3,6.11034]
[1741929259036,8.28354,1892.7,1892.6,0.11769319]
[1741929259230,5.28377,1892.6,1892.3,0.8258]
[1741929259646,8.28354,1892.7,1892.3,6.11034]
[1741929259855,8.28354,1892.7,1892.3,0.8258]
[1741929260067,5.28375,1892.6,1892.3,0.8258]
[1741929262763,8.28354,1892.7,1892.3,6.11023]
[1741929263139,5.28378,1892.6,1892.3,0.8258]
[1741929263340,5.28378,1892.6,1892.4,0.11763127]
[1741929263853,5.28378,1892.6,1892.5,0.11762667]
[1741929264058,9.640512,1892.6,1892.5,0.11762667]
[1741929264238,5.2843,1892.4,1892.1,5.7805]
[1741929265167,5.2847,1892.3,1892.1,5.7805]
[1741929265370,5.2847,1892.3,1892.1,0.8215]
[1741929266868,5.64967,1892.5,1892.1,0.8215]
[1741929266869,5.28427,1892.5,1892.1,0.8215]
[1741929267041,5.28427,1892.5,1892.1,6.72251112]
[1741929267742,10.56841,1892.5,1892.1,6.72251112]
[1741929268267,3.0,1892.6,1892.2,6.1062]
[1741929268638,3.0,1892.6,1892.2,5.28468]
[1741929268841,3.0,1892.6,1892.3,0.8116]
[1741929269086,3.0,1892.6,1892.3,6.09617]
[1741929269380,3.0,1892.6,1892.3,0.8116]
[1741929269942,5.68938745,1892.8,1892.3,11.38045]
[1741929270282,10.56649,1892.8,1892.3,11.38045]
[1741929270480,10.56649,1892.8,1892.3,7.29299131]
[1741929270668,10.56649,1892.8,1892.3,12.57740131]
[1741929271101,5.28318,1892.8,1892.3,12.57740131]
[1741929271306,5.28318,1892.8,1892.3,17.52940131]
[1741929271486,10.56661,1892.8,1892.3,12.24499131]
[1741929271692,10.56661,1892.8,1892.3,17.52943131]
[1741929272131,10.56661,1892.8,1892.3,12.24499131]
[1741929272717,5.67519398,1892.9,1892.5,5.284]
[1741929272875,5.67519398,1892.9,1892.6,0.7683]
[1741929273209,5.28323,1892.8,1892.6,0.7683]
[1741929274080,5.28345,1892.7,1892.6,0.7683]
[1741929274311,5.28345,1892.7,1892.4,0.7683]
[1741929275123,5.28376,1892.6,1892.4,0.7683]
[1741929275491,5.28345,1892.7,1892.4,0.7683]
[1741929276687,5.28345,1892.7,1892.4,1.373563]
[1741929277087,5.28318,1892.8,1892.4,6.657853]
[1741929277314,10.56647,1892.8,1892.4,6.657853]
[1741929277815,5.28318,1892.8,1892.4,6.657853]
[1741929278320,5.28318,1892.8,1892.5,0.11735402]
[1741929278730,5.28373,1892.6,1892.5,0.11735402]
[1741929278905,5.28364,1892.7,1892.5,0.11735402]
[1741929279428,5.28373,1892.6,1892.5,0.11735402]
[1741929279731,5.28406,1892.5,1892.3,0.7589]
[1741929280311,5.28406,1892.5,1892.2,0.7589]
[1741929281434,5.28373,1892.6,1892.2,0.7589]
[1741929281729,5.28373,1892.6,1892.2,6.648119]
[1741929282315,5.28346,1892.7,1892.2,6.70096289]
[1741929282520,5.28374,1892.6,1892.2,11.932859]
[1741929282720,5.28358,1892.7,1892.4,0.812]
[1741929284596,5.28401,1892.5,1892.2,0.7616]
[1741929285423,10.56772,1892.6,1892.2,0.7616]
[1741929285626,5.28374,1892.6,1892.2,0.7616]
[1741929285828,5.28374,1892.6,1892.2,6.04639]
[1741929286823,5.28346,1892.7,1892.3,5.28445]
[1741929287030,10.56707,1892.7,1892.4,0.7919]
[1741929287526,10.56709,1892.7,1892.4,0.7919]
[1741929287931,5.28346,1892.7,1892.4,0.7919]
[1741929288701,5.28435,1892.4,1892.1,5.6945]
[1741929290801,5.28361,1892.7,1892.2,0.8283]
[1741929291031,10.56731,1892.7,1892.2,5.28458]
[1741929291234,10.56731,1892.7,1892.3,0.8283]
[1741929291235,5.28374,1892.6,1892.3,0.8283]
[1741929292630,5.28391,1892.6,1892.3,0.8283]
[1741929293233,5.28391,1892.6,1892.4,0.11754829]
[1741929293437,5.28391,1892.6,1892.3,0.8283]
[1741929293651,5.28391,1892.6,1892.4,0.11754829]
[1741929293944,5.28391,1892.6,1892.3,0.8283]
[1741929294151,5.28391,1892.6,1892.5,0.11754368]
[1741929294318,5.28391,1892.6,1892.4,0.11754829]
[1741929294503,5.28391,1892.6,1892.5,0.11754368]
[1741929294853,5.28391,1892.6,1892.3,0.8283]
[1741929295016,5.28391,1892.6,1892.4,0.11754829]
[1741929295217,5.28391,1892.6,1892.3,1.5418338]
[1741929295416,5.28391,1892.6,1892.4,0.11754829]
[1741929295615,5.28391,1892.6,1892.3,1.5418338]
[1741929295818,5.28391,1892.6,1892.4,0.11754829]
[1741929296135,5.28391,1892.6,1892.3,1.5418338]
[1741929296341,5.28391,1892.6,1892.5,0.11754368]
[1741929296517,5.28391,1892.6,1892.4,0.11754829]
[1741929296717,5.28391,1892.6,1892.3,0.8283]
[1741929297039,5.28391,1892.6,1892.4,0.11754829]
[1741929297336,5.28391,1892.6,1892.3,1.5418338]
[1741929297539,5.28391,1892.6,1892.5,0.11754368]
[1741929297718,5.28391,1892.6,1892.3,0.8283]
[1741929297918,5.28391,1892.6,1892.5,0.11754368]
[1741929298144,5.28391,1892.6,1892.3,0.8283]
[1741929298344,5.28391,1892.6,1892.5,0.11754368]
[1741929298538,5.28361,1892.7,1892.3,0.8283]
[1741929298720,10.56732,1892.7,1892.5,0.11754368]
[1741929298904,10.56732,1892.7,1892.3,6.11281]
[1741929299130,5.28361,1892.7,1892.6,0.11753908]
[1741929299328,0.3654,1892.8,1892.4,5.2841]
[1741929299329,3.0,1892.8,1892.4,5.2841]
[1741929299528,5.67523398,1892.9,1892.4,5.2841]
[1741929299529,5.28358,1892.7,1892.6,0.11753908]
[1741929299722,5.28358,1892.7,1892.3,6.11283]
[1741929299922,5.28358,1892.7,1892.6,0.11749165]
[1741929300227,5.28358,1892.7,1892.3,6.11268]
[1741929300426,8.28327,1892.8,1892.3,11.39714]
[1741929300737,5.28362,1892.7,1892.4,1.25721486]
[1741929301313,5.28376,1892.6,1892.4,1.25721486]
[1741929301644,5.28362,1892.7,1892.4,0.11750086]
[1741929301941,10.56725,1892.7,1892.3,6.11274]
[1741929302134,10.56725,1892.7,1892.5,0.11749625]
[1741929302325,10.56725,1892.7,1892.3,6.11274]
[1741929302626,10.56792,1892.6,1892.3,0.8283]
[1741929302834,5.28394,1892.6,1892.3,0.8283]
[1741929303043,10.5678,1892.6,1892.3,0.8283]
[1741929303244,5.28386,1892.6,1892.3,0.8283]
[1741929303813,5.28386,1892.6,1892.3,1.5418498]
[1741929304438,3.0,1892.6,1892.3,6.8263098]
[1741929304762,13.5665,1892.8,1892.4,5.28421]
[1741929304914,8.28317,1892.8,1892.4,5.28421]
[1741929305114,8.28317,1892.8,1892.5,0.8238]
[1741929305511,5.28318,1892.8,1892.5,1.434601]
[1741929305717,3.0,1892.8,1892.5,1.434601]
[1741929305918,3.0,1892.8,1892.5,6.718601]
[1741929306228,3.0,1892.8,1892.5,1.434601]
[1741929306617,5.28223,1893.2,1892.7,5.28329]
[1741929306874,5.28246,1893.1,1892.8,1.348629]
[1741929307077,0.3654,1893.3,1892.9,5.28287]
[1741929307357,5.64723,1893.3,1892.9,5.28287]
[1741929307717,0.39221112,1893.5,1893.0,10.61784228]
[1741929307926,5.28135,1893.5,1893.1,1.86628423]
[1741929308153,5.2819,1893.3,1893.0,0.8045]
[1741929308319,5.2819,1893.3,1893.2,0.11703737]
[1741929308516,0.3654,1893.4,1893.0,6.0871]
[1741929308517,5.28151,1893.4,1893.0,6.0871]
[1741929308872,5.28151,1893.4,1893.1,0.11704197]
[1741929309870,3.0,1893.4,1893.1,0.11704197]
[1741929310163,3.0,1893.4,1893.1,0.73744517]
[1741929310347,3.0,1893.4,1893.1,6.01974517]
[1741929310724,3.0,1893.4,1893.2,0.7612]
[1741929310926,8.28097,1893.6,1893.2,0.7612]
[1741929311253,3.0,1893.6,1893.3,0.11703277]
[1741929311621,0.39566725,1893.8,1893.4,6.05157]
[1741929311826,5.28053,1893.8,1893.5,0.11702358]
[1741929312026,5.28082,1893.7,1893.5,0.11702358]
[1741929313452,5.28053,1893.8,1893.5,0.11702358]
[1741929316231,3.0,1893.9,1893.6,0.8259]
[1741929316624,3.0,1893.9,1893.7,0.11618499]
[1741929316840,10.92424,1894.2,1893.7,5.28063]
[1741929317132,5.27958,1894.1,1893.8,0.11618039]
[1741929317331,5.27958,1894.1,1893.6,11.38746]
[1741929317533,5.27958,1894.1,1893.9,0.1161758]
[1741929317744,3.0,1894.1,1893.7,5.28052]
[1741929317945,8.27957,1894.1,1894.0,0.1161712]
[1741929318352,8.27957,1894.1,1893.7,5.28052]
[1741929318652,8.27957,1894.1,1894.0,0.1161712]
[1741929318847,8.27957,1894.1,1893.7,1.138716]
[1741929319027,5.27984,1894.0,1893.7,1.138716]
[1741929319363,5.27984,1894.0,1893.8,0.11618039]
[1741929319952,13.55939,1894.1,1893.8,0.11618039]
[1741929320135,13.55933,1894.1,1893.8,0.11618039]
[1741929321264,5.27987,1894.0,1893.8,0.11618039]
[1741929321429,5.2801,1893.9,1893.8,0.11618039]
[1741929321630,5.2801,1893.9,1893.8,0.11503155]
[1741929321829,5.27987,1894.0,1893.6,0.8259]
[1741929322039,10.55985,1894.0,1893.6,0.8259]
[1741929322251,10.55985,1894.0,1893.7,0.11503614]
[1741929322452,10.55985,1894.0,1893.6,0.8259]
[1741929322658,10.55985,1894.0,1893.7,0.11503614]
[1741929323037,10.55985,1894.0,1893.8,0.11503155]
[1741929323344,10.55985,1894.0,1893.6,1.93171]
[1741929323565,5.27987,1894.0,1893.9,0.11502695]
[1741929324445,5.27987,1894.0,1893.6,0.8259]
[1741929324775,5.27987,1894.0,1893.6,7.740717]
[1741929324940,5.27987,1894.0,1893.7,0.11503614]
[1741929325372,5.27987,1894.0,1893.6,7.740717]
[1741929325571,5.27987,1894.0,1893.8,0.11503155]
[1741929325889,5.27987,1894.0,1893.9,0.11502695]
[1741929326183,5.27987,1894.0,1893.6,7.740717]
[1741929326472,5.27983,1894.0,1893.9,0.11502695]
[1741929326771,5.27983,1894.0,1893.9,0.11443488]
[1741929327078,5.27983,1894.0,1893.6,7.740717]
[1741929327571,5.64412,1894.4,1893.9,5.27989]
[1741929327776,5.64412,1894.4,1893.9,5.33268647]
[1741929327973,5.2793,1894.2,1894.0,0.11441845]
[1741929328148,5.27903,1894.3,1894.0,0.11441845]
[1741929328473,5.27903,1894.3,1893.9,5.28005]
[1741929328687,5.27903,1894.3,1894.0,0.64242345]
[1741929329669,0.3654,1894.4,1894.1,0.7948]
[1741929329890,8.64399,1894.5,1894.2,0.11406602]
[1741929330346,8.27859,1894.5,1894.2,0.11406602]
[1741929333875,8.27856,1894.5,1894.2,0.11406602]
[1741929335475,5.27885,1894.4,1894.2,0.11406602]
[1741929336767,8.27856,1894.5,1894.2,0.11406602]
[1741929336962,3.0,1894.5,1894.2,0.11406602]
[1741929338179,8.27856,1894.5,1894.2,0.11406602]
[1741929343591,3.0,1894.5,1894.2,0.11406602]
[1741929344785,8.27855,1894.5,1894.2,0.11406602]
[1741929348086,8.28794653,1894.4,1894.2,0.11406602]
[1741929348389,8.27899,1894.3,1894.2,0.11406602]
[1741929348588,3.0,1894.3,1894.2,0.11406602]
[1741929348765,3.0,1894.3,1893.9,11.32011]
[1741929348969,3.0,1894.3,1894.2,0.11315483]
[1741929349161,8.27904,1894.3,1893.9,6.04019]
[1741929349354,8.27904,1894.3,1894.2,0.11315483]
[1741929349558,8.27904,1894.3,1893.9,6.04019]
[1741929349876,8.27904,1894.3,1894.2,0.11315483]
[1741929350061,8.27904,1894.3,1893.9,6.04019]
[1741929350258,8.27904,1894.3,1894.2,0.11333231]
[1741929350455,8.27904,1894.3,1893.9,6.04019]
[1741929350456,9.53208185,1894.3,1893.9,6.04019]
[1741929350659,9.53208185,1894.3,1894.2,0.11333231]
[1741929350660,14.81131185,1894.3,1894.2,0.11333231]
[1741929350855,14.81131185,1894.3,1893.9,0.7603]
[1741929351059,5.27929,1894.2,1893.9,0.7603]
[1741929351492,5.27929,1894.2,1894.0,0.11348348]
[1741929353597,10.55883,1894.2,1894.0,0.11348348]
[1741929353767,5.27929,1894.2,1894.0,0.11348348]
[1741929355593,5.27955,1894.1,1894.0,0.11348348]
[1741929355796,5.27955,1894.1,1893.7,0.7854]
[1741929355991,5.27955,1894.1,1894.0,0.11348348]
[1741929356200,5.27983,1894.0,1893.7,0.7854]
[1741929356876,5.27983,1894.0,1893.8,0.11359917]
[1741929357218,5.27955,1894.1,1893.8,0.11359917]
[1741929358694,5.27928,1894.2,1893.8,6.01184809]
[1741929358894,5.27928,1894.2,1893.9,0.8332]
[1741929359095,5.27928,1894.2,1894.0,0.11357815]
[1741929359601,5.27955,1894.1,1894.0,0.11357815]
[1741929360303,7.08303439,1894.1,1894.0,0.11357815]
[1741929360673,8.31926583,1894.1,1894.0,0.11357815]
[1741929360975,5.27997,1894.0,1893.7,0.8332]
[1741929361174,1.80348439,1893.9,1893.7,0.8332]
[1741929361701,7.08345439,1894.0,1893.7,0.8332]
[1741929362300,5.27997,1894.0,1893.7,0.8332]
[1741929363103,10.55994,1894.0,1893.7,0.8332]
[1741929363302,5.27997,1894.0,1893.7,0.8332]
[1741929363472,10.55993,1894.0,1893.7,0.8332]
[1741929363672,5.27996,1894.0,1893.7,0.8332]
[1741929364190,10.56003,1894.0,1893.7,0.8332]
[1741929364386,5.27996,1894.0,1893.7,0.8332]
[1741929364806,10.55999,1894.0,1893.7,0.8332]
[1741929365405,10.55993,1894.0,1893.7,0.8332]
[1741929365701,10.55992,1894.0,1893.7,0.8332]
[1741929366886,5.27996,1894.0,1893.7,0.8332]
[1741929367093,5.27995,1894.0,1893.7,0.8332]
[1741929368307,5.27995,1894.0,1893.8,0.11358734]
[1741929370590,5.2801,1893.9,1893.8,0.11358734]
[1741929371893,6.336105,1893.9,1893.8,0.11358734]
[1741929372239,5.2807,1893.7,1893.5,0.7855]
[1741929373110,5.28094,1893.6,1893.5,0.7855]
[1741929373282,5.28127,1893.5,1893.3,0.7855]
[1741929373482,5.28094,1893.6,1893.3,5.7285]
[1741929374612,5.28094,1893.6,1893.3,0.7855]
[1741929374794,5.28067,1893.7,1893.3,0.7855]
[1741929374996,10.56148,1893.7,1893.3,6.06726]
[1741929376035,5.28067,1893.7,1893.3,6.06726]
[1741929376191,5.28067,1893.7,1893.3,7.74918526]
[1741929376588,8.28011,1893.9,1893.5,6.10725]
[1741929376818,8.28011,1893.9,1893.5,0.8263]
[1741929377023,13.56047,1893.9,1893.5,0.8263]
[1741929377940,8.28011,1893.9,1893.5,0.8263]
[1741929378232,8.28011,1893.9,1893.5,1.43708]
[1741929378394,8.28011,1893.9,1893.5,6.71829]
[1741929378825,5.28011,1893.9,1893.5,6.71829]
[1741929379422,5.28011,1893.9,1893.5,11.99932]
[1741929379602,5.28011,1893.9,1893.6,1.199932]
[1741929380424,8.28605455,1894.0,1893.6,1.199932]
[1741929380591,10.55986,1894.0,1893.7,0.7586]
[1741929380792,5.28011,1893.9,1893.7,0.7586]
[1741929381015,8.27983,1894.0,1893.7,0.7586]
[1741929381215,5.27983,1894.0,1893.7,0.7586]
[1741929381395,8.27983,1894.0,1893.7,0.7586]
[1741929383426,8.27983,1894.0,1893.8,0.11425012]
[1741929384110,13.5599,1894.0,1893.8,0.11425012]
[1741929384541,8.27983,1894.0,1893.8,0.11425012]
[1741929384734,13.55991,1894.0,1893.8,0.11425012]
[1741929384935,8.27983,1894.0,1893.8,0.11425012]
[1741929388247,1.80385362,1893.9,1893.8,0.11425012]
[1741929389644,1.80385362,1893.9,1893.8,1.1796126]
[1741929392316,10.08368362,1894.0,1893.8,1.1796126]
[1741929393158,1.80385362,1893.9,1893.8,1.1796126]
[1741929396456,7.08395362,1893.9,1893.8,1.1796126]
[1741929397357,1.80385362,1893.9,1893.8,1.1796126]
[1741929409965,7.08395362,1893.9,1893.8,1.1796126]
[1741929422081,7.08395362,1893.9,1893.8,0.11425012]
[1741929422290,13.7895856,1893.9,1893.8,0.11425012]
[1741929422481,5.2815,1893.4,1893.3,10.04]
[1741929422681,5.28189,1893.3,1893.1,1.0565]
[1741929422888,7.08591362,1893.2,1893.1,1.0565]
[1741929423382,7.08591362,1893.2,1893.1,2.12942956]
[1741929427856,7.08574362,1893.3,1893.1,2.12942956]
[1741929428052,7.08574362,1893.3,1893.1,1.0565]
[1741929428557,7.08574362,1893.3,1893.2,0.1016391]
[1741929428990,1.80385362,1893.3,1893.2,0.1016391]
[1741929429287,7.08563362,1893.3,1893.2,0.1016391]
[1741929429590,2.1949674,1893.4,1893.2,0.1016391]
[1741929429782,3.0,1893.5,1893.2,6.83433401]
[1741929430162,10.08508362,1893.5,1893.2,1.55227401]
[1741929430370,1.80385362,1893.4,1893.2,1.55227401]
[1741929430697,1.80385362,1893.3,1893.2,1.55227401]
[1741929430903,7.08547362,1893.4,1893.2,0.9082391]
[1741929433797,7.08563362,1893.3,1893.2,0.1016391]
[1741929436396,5.28178,1893.3,1893.2,0.1016391]
[1741929436591,7.08547362,1893.4,1893.2,0.1016391]
[1741929436781,1.80385362,1893.4,1893.2,0.1016391]
[1741929436969,7.08536362,1893.4,1893.2,0.1016391]
[1741929437173,12.36710362,1893.4,1893.2,0.1016391]
[1741929437583,7.08536362,1893.4,1893.2,0.1016391]
[1741929438889,3.3654,1893.7,1893.3,0.7692]
[1741929439100,10.08508362,1893.5,1893.3,0.7692]
[1741929439266,10.08508362,1893.5,1893.4,0.10249258]
[1741929440498,10.08508362,1893.5,1893.1,7.15139]
[1741929440694,1.80385362,1893.4,1893.2,0.715139]
[1741929440887,10.08508362,1893.5,1893.2,0.715139]
[1741929441700,4.80385362,1893.5,1893.2,0.715139]
[1741929441870,4.80385362,1893.5,1893.2,5.997179]
[1741929442070,10.08508362,1893.5,1893.2,0.715139]
[1741929442797,7.08493362,1893.6,1893.2,5.997179]
[1741929442984,1.80385362,1893.6,1893.3,6.6399679]
[1741929443185,1.80385362,1893.6,1893.4,0.10249258]
[1741929443390,1.80385362,1893.5,1893.4,0.10249258]
[1741929446774,1.80385362,1893.6,1893.4,5.38399258]
[1741929446973,1.80385362,1893.6,1893.4,0.10249258]
[1741929447193,1.80385362,1893.6,1893.4,0.77673063]
[1741929447395,1.80385362,1893.8,1893.5,6.05469]
[1741929447568,1.80385362,1893.9,1893.6,5.38305338]
[1741929448202,1.80385362,1893.8,1893.6,5.38305338]
[1741929448501,7.08396362,1893.9,1893.7,0.53830534]
[1741929448703,1.80385362,1893.8,1893.6,5.38305338]
[1741929448883,1.80385362,1893.8,1893.6,5.2807]
[1741929452915,1.80385362,1893.9,1893.5,0.7735]
[1741929453086,5.64481,1894.2,1893.8,6.10665]
[1741929453421,1.80385362,1894.0,1893.8,1.965021]
[1741929453586,1.80385362,1894.0,1893.8,2.01782062]
[1741929454075,1.80385362,1894.0,1893.8,7.29818062]
[1741929454711,1.80385362,1894.0,1893.8,2.01782062]
[1741929454903,1.80385362,1894.0,1893.8,1.965021]
[1741929455204,1.80385362,1894.0,1893.8,2.01781906]
[1741929457208,1.80385362,1894.0,1893.8,1.965021]
[1741929458289,1.80385362,1894.0,1893.9,0.10134704]
[1741929458492,10.08347362,1894.1,1893.9,0.10134704]
[1741929460280,1.80385362,1894.0,1893.9,0.10134704]
[1741929463311,4.80385362,1894.1,1893.9,0.10134704]
[1741929464513,10.08341362,1894.1,1893.9,0.10134704]
[1741929464916,1.80385362,1894.0,1893.9,0.10134704]
[1741929465214,1.80385362,1894.0,1893.7,6.04894]
[1741929465383,1.80385362,1894.0,1893.8,0.10135164]
[1741929467580,4.80385362,1894.1,1893.8,5.43448974]
[1741929468097,4.80385362,1894.1,1893.8,5.38169164]
[1741929468413,1.80385362,1894.0,1893.8,5.38169164]
[1741929468625,4.80385362,1894.1,1893.8,5.38169164]
[1741929469696,4.80385362,1894.1,1893.8,6.6380446]
[1741929469894,8.68500322,1894.4,1894.0,5.27957]
[1741929470114,1.80385362,1894.3,1894.0,10.55928]
[1741929470283,1.80385362,1894.3,1894.1,0.10098341]
[1741929470989,4.80385362,1894.4,1894.1,6.19850341]
[1741929471189,1.80385362,1894.4,1894.1,6.73655875]
[1741929471421,1.80385362,1894.4,1894.1,6.78934885]
[1741929471621,1.80385362,1894.4,1894.1,12.06870885]
[1741929471809,1.80385362,1894.4,1894.2,5.2792]
[1741929471990,1.80385362,1894.4,1894.3,0.10097422]
[1741929472513,8.67986586,1894.6,1894.3,0.10097422]
[1741929472719,1.80385362,1894.4,1894.3,0.10097422]
[1741929475399,1.80385362,1894.4,1894.1,6.09774]
[1741929475600,1.80385362,1894.3,1894.2,0.10097882]
[1741929480542,1.80385362,1894.4,1894.2,0.10097882]